[Event "DVM U10 2024"]
[Site "Duesseldorf"]
[Date "2024.12.28"]
[Round "4"]
[White "Liu, Jonas"]
[Black "Jozsa, Lev"]
[Result "1-0"]
[ECO "C42"]
[WhiteElo "1690"]
[BlackElo "1617"]
[Annotator "NA RC"]
[PlyCount "111"]
[EventDate "2024.12.23"]
[EventType "team-tourn"]
[EventRounds "7"]
[EventCountry "GER"]
[SourceTitle "playchess.com"]
[Source "ChessBase"]
[SourceQuality "1"]
[TimeControl "3300+5"]

1. e4 {[%emt 0:00:05]} e5 {[%emt 0:00:01]} 2. Nf3 {[%emt 0:00:08]} Nf6 {[%emt 0:00:01]} 3. Nxe5 {[%emt 0:00:18]} Nc6 {[%emt 0:00:06]} 4. Nxc6 {[%emt 0:00:31]} dxc6 {[%emt 0:00:18]} 5. e5 {[%emt 0:00:37]} Ne4 {[%emt 0:01:03]} 6. d4 {[%emt 0:01:20]} c5 {[%emt 0:02:43]} 7. Nc3 {[%emt 0:02:16]} Nxc3 {[%emt 0:10:08]} 8. bxc3 {[%emt 0:00:09]} cxd4 {[%emt 0:00:09]} 9. Qxd4 {[%emt 0:01:33]} Bf5 {[%emt 0:00:58]} 10. Bd3 {[%emt 0:01:24]} Qxd4 {[%emt 0:02:54]} 11. cxd4 {[%emt 0:01:06]} Bxd3 {[%emt 0:01:09]} 12. cxd3 {[%emt 0:00:08]} O-O-O {[%emt 0:01:08]} 13. Be3 {[%emt 0:01:51]} Ba3 {[%emt 0:00:19]} 14. Ke2 {[%emt 0:01:25]} Bb2 {[%emt 0:00:21]} 15. Rab1 {[%emt 0:06:42]} Bxd4 {[%emt 0:00:24]} 16. f4 {[%emt 0:01:13]} Rhe8 {[%emt 0:01:15]} 17. Bxd4 {[%emt 0:02:13]} Rxd4 {[%emt 0:00:41]} 18. Ke3 {[%emt 0:00:30]} Rd7 {[%emt 0:00:37]} 19. d4 {[%emt 0:01:32]} f6 {[%emt 0:00:41]} 20. Ke4 {[%emt 0:01:58]} g5 {[%emt 0:02:37]} 21. f5 {[%emt 0:01:00]} c5 {[%emt 0:01:41]} 22. Rhd1 {[%emt 0:01:29]} Rxd4+ {[%emt 0:00:59]} 23. Rxd4 {[%emt 0:01:14]} Rxe5+ {[%emt 0:00:57]} 24. Kd3 {[%emt 0:00:38]} cxd4 {[%emt 0:00:18]} 25. g4 {[%emt 0:01:09]} Re3+ {[%emt 0:03:19]} 26. Kxd4 {[%emt 0:01:46]} Re2 {[%emt 0:00:15]} 27. h4 {[%emt 0:01:05]} h6 {[%emt 0:01:52]} 28. hxg5 {[%emt 0:00:23]} hxg5 {[%emt 0:00:22]} 29. Rh1 {[%emt 0:00:25]} Rxa2 {[%emt 0:03:22]} 30. Rh8+ {[%emt 0:00:10]} Kd7 {[%emt 0:03:02]} 31. Rh7+ {[%emt 0:00:08]} Kc6 {[%emt 0:01:42]} 32. Rh6 {[%emt 0:00:08]} Ra4+ {[%emt 0:00:34]} 33. Ke3 {[%emt 0:00:38]} Rxg4 {[%emt 0:00:56]} 34. Rxf6+ {[%emt 0:00:06]} Kb5 {[%emt 0:00:49]} 35. Rg6 {[%emt 0:00:12]} a5 {[%emt 0:00:56]} 36. f6 {[%emt 0:01:05]} Rg1 {[%emt 0:02:17]} 37. Kf2 {[%emt 0:01:05]} Rg4 {[%emt 0:00:17]} 38. Ke3 {[%emt 0:00:09]} Kb4 {[%emt 0:00:56]} 39. Rg7 {[%emt 0:01:51]} b5 {[%emt 0:00:55]} 40. Re7 {[%emt 0:01:30]} Rg1 {[%emt 0:02:15]} 41. Kf2 {[%emt 0:01:09]} Rg4 {[%emt 0:00:14]} 42. Ke3 {[%emt 0:00:11]} Rg1 {[%emt 0:00:14]} 43. Re4+ {[%emt 0:00:22]} Kb3 {[%emt 0:00:19]} 44. Kf2 {[%emt 0:00:05]} Rc1 {[%emt 0:01:16]} 45. f7 {[%emt 0:00:05]} Rc8 {[%emt 0:00:08]} 46. Re8 {[%emt 0:00:05]} Rc4 {[%emt 0:00:05]} 47. Re3+ {[%emt 0:01:09]} Ka4 {[%emt 0:01:00]} 48. Ra3+ {[%emt 0:00:04]} Kxa3 {[%emt 0:00:01]} 49. f8=Q+ {[%emt 0:00:08]} b4 {[%emt 0:00:04]} 50. Qd6 {[%emt 0:01:14]} a4 {[%emt 0:00:11]} 51. Qd5 {[%emt 0:00:38]} Kb3 {[%emt 0:00:05]} 52. Ke2 {[%emt 0:00:26]} a3 {[%emt 0:00:19]} 53. Kd3 {[%emt 0:00:09]} a2 {[%emt 0:00:05]} 54. Qxc4+ {[%emt 0:00:07]} Ka3 {[%emt 0:00:11]} 55. Kc2 {[%emt 0:00:28]} a1=Q {[%emt 0:00:03]} 56. Qb3# {[%emt 0:00:10]} 1-0

[Event "DVM U10 2024"]
[Site "Duesseldorf"]
[Date "2024.12.28"]
[Round "4"]
[White "Liu, Siyuan B"]
[Black "Satheesh, Yazhini"]
[Result "1-0"]
[ECO "C47"]
[WhiteElo "1687"]
[BlackElo "1023"]
[Annotator "NA RC"]
[PlyCount "167"]
[EventDate "2024.12.23"]
[EventType "team-tourn"]
[EventRounds "7"]
[EventCountry "GER"]
[SourceTitle "playchess.com"]
[Source "ChessBase"]
[SourceQuality "1"]
[TimeControl "3300+5"]

1. e4 {[%emt 0:00:03]} e5 {[%emt 0:00:06]} 2. Nf3 {[%emt 0:00:02]} Nc6 {[%emt 0:00:09]} 3. d4 {[%emt 0:00:20]} exd4 {[%emt 0:00:52]} 4. Nxd4 {[%emt 0:01:53]} Be7 {[%emt 0:00:09]} 5. Nxc6 {[%emt 0:00:13]} dxc6 {[%emt 0:01:59]} 6. Qxd8+ {[%emt 0:00:00]} Bxd8 {[%emt 0:00:11]} 7. Nc3 {[%emt 0:00:00]} Nf6 {[%emt 0:00:52]} 8. Bd3 {[%emt 0:00:00]} Be6 {[%emt 0:00:37]} 9. e5 {[%emt 0:00:00]} Nd5 {[%emt 0:03:23]} 10. Bd2 {[%emt 0:01:26]} Nxc3 {[%emt 0:02:15]} 11. Bxc3 {[%emt 0:00:00]} Bg5 {[%emt 0:01:39]} 12. O-O {[%emt 0:00:00]} O-O {[%emt 0:01:38]} 13. f4 {[%emt 0:00:00]} Be7 {[%emt 0:03:31]} 14. f5 {[%emt 0:00:00]} Bc5+ {[%emt 0:03:50]} 15. Kh1 {[%emt 0:00:00]} Bd7 {[%emt 0:01:15]} 16. f6 {[%emt 0:00:00]} g6 {[%emt 0:02:29]} 17. a3 {[%emt 0:00:26]} Be6 {[%emt 0:01:20]} 18. b4 {[%emt 0:00:07]} Bb6 {[%emt 0:01:16]} 19. Bb2 {[%emt 0:00:10]} a6 {[%emt 0:00:49]} 20. c4 {[%emt 0:00:10]} Be3 {[%emt 0:03:23]} 21. c5 {[%emt 0:00:19]} Rad8 {[%emt 0:01:57]} 22. Be4 {[%emt 0:00:33]} Bd4 {[%emt 0:02:53]} 23. Rab1 {[%emt 0:00:19]} Bxb2 {[%emt 0:00:56]} 24. Rxb2 {[%emt 0:00:09]} Bc4 {[%emt 0:00:36]} 25. Rc1 {[%emt 0:00:14]} Be6 {[%emt 0:01:44]} 26. h3 {[%emt 0:00:08]} Rfe8 {[%emt 0:00:49]} 27. Rcc2 {[%emt 0:00:28]} Kf8 {[%emt 0:00:48]} 28. Rd2 {[%emt 0:00:10]} Rxd2 {[%emt 0:00:33]} 29. Rxd2 {[%emt 0:00:07]} Kg8 {[%emt 0:00:23]} 30. Bf3 {[%emt 0:00:32]} Bf5 {[%emt 0:00:25]} 31. g4 {[%emt 0:00:12]} Be6 {[%emt 0:00:18]} 32. Kg2 {[%emt 0:00:12]} h6 {[%emt 0:00:31]} 33. Kg3 {[%emt 0:00:09]} Kh7 {[%emt 0:00:16]} 34. Be4 {[%emt 0:00:09]} Kh8 {[%emt 0:00:28]} 35. Rd4 {[%emt 0:00:23]} Kg8 {[%emt 0:00:35]} 36. Kf3 {[%emt 0:00:46]} Kh8 {[%emt 0:00:39]} 37. Kf4 {[%emt 0:00:49]} Kg8 {[%emt 0:00:26]} 38. h4 {[%emt 0:00:16]} Kh8 {[%emt 0:00:28]} 39. g5 {[%emt 0:00:15]} h5 {[%emt 0:00:32]} 40. Rd3 {[%emt 0:00:20]} Kg8 {[%emt 0:00:32]} 41. Kg3 {[%emt 0:00:40]} Kh8 {[%emt 0:00:11]} 42. a4 {[%emt 0:00:23]} Rb8 {[%emt 0:00:18]} 43. Kf3 {[%emt 0:00:52]} Bg4+ {[%emt 0:00:20]} 44. Kg3 {[%emt 0:00:08]} Be6 {[%emt 0:00:05]} 45. Bf3 {[%emt 0:00:23]} Kg8 {[%emt 0:00:11]} 46. Kf2 {[%emt 0:00:28]} Kh8 {[%emt 0:00:10]} 47. Rd4 {[%emt 0:00:09]} Kg8 {[%emt 0:00:12]} 48. Ke3 {[%emt 0:00:05]} Kh8 {[%emt 0:00:12]} 49. Be4 {[%emt 0:00:13]} Kg8 {[%emt 0:00:05]} 50. Bd3 {[%emt 0:00:15]} Re8 {[%emt 0:00:35]} 51. Kf4 {[%emt 0:00:27]} Kh8 {[%emt 0:00:11]} 52. b5 {[%emt 0:00:07]} axb5 {[%emt 0:00:31]} 53. axb5 {[%emt 0:00:09]} cxb5 {[%emt 0:00:07]} 54. Bxb5 {[%emt 0:00:12]} Rf8 {[%emt 0:00:34]} 55. Bd7 {[%emt 0:00:11]} Bb3 {[%emt 0:01:33]} 56. Rb4 {[%emt 0:00:10]} Bd5 {[%emt 0:00:33]} 57. Ke3 {[%emt 0:00:23]} Bc6 {[%emt 0:00:48]} 58. Bxc6 {[%emt 0:00:12]} bxc6 {[%emt 0:00:02]} 59. Rb7 {[%emt 0:00:12]} Rc8 {[%emt 0:00:21]} 60. Kd4 {[%emt 0:00:54]} Rd8+ {[%emt 0:00:02]} 61. Kc4 {[%emt 0:00:29]} Rc8 {[%emt 0:00:06]} 62. Rb3 {[%emt 0:00:21]} Kg8 {[%emt 0:00:13]} 63. Ra3 {[%emt 0:00:13]} Kf8 {[%emt 0:00:09]} 64. Ra6 {[%emt 0:00:08]} Ke8 {[%emt 0:00:44]} 65. Rxc6 {[%emt 0:00:12]} Kd7 {[%emt 0:00:17]} 66. Ra6 {[%emt 0:00:21]} Rd8 {[%emt 0:00:40]} 67. Kd4 {[%emt 0:00:27]} Ke8+ {[%emt 0:00:34]} 68. Ke4 {[%emt 0:00:04]} Kd7 {[%emt 0:00:17]} 69. c6+ {[%emt 0:00:11]} Ke8 {[%emt 0:00:58]} 70. Ra7 {[%emt 0:00:12]} Rc8 {[%emt 0:00:08]} 71. Rb7 {[%emt 0:00:14]} Kd8 {[%emt 0:00:14]} 72. Kd5 {[%emt 0:00:15]} Ke8 {[%emt 0:00:14]} 73. e6 {[%emt 0:00:10]} Kf8 {[%emt 0:01:01]} 74. exf7 {[%emt 0:00:05]} Kxf7 {[%emt 0:00:05]} 75. Ke5 {[%emt 0:00:39]} Re8+ {[%emt 0:00:15]} 76. Kd5 {[%emt 0:00:04]} Rd8+ {[%emt 0:00:07]} 77. Kc5 {[%emt 0:00:12]} Rc8 {[%emt 0:00:05]} 78. Rb4 {[%emt 0:00:27]} Re8 {[%emt 0:00:24]} 79. Rd4 {[%emt 0:00:04]} Re5+ {[%emt 0:00:10]} 80. Rd5 {[%emt 0:00:20]} Rxd5+ {[%emt 0:00:23]} 81. Kxd5 {[%emt 0:00:11]} Ke8 {[%emt 0:00:01]} 82. Ke6 {[%emt 0:00:15]} Kd8 {[%emt 0:00:11]} 83. f7 {[%emt 0:00:13]} Kc8 {[%emt 0:00:02]} 84. f8=R# {[%emt 0:00:19]} 1-0

[Event "DVM U10 2024"]
[Site "Duesseldorf"]
[Date "2024.12.28"]
[Round "4"]
[White "Ahmadov, Ahmad"]
[Black "Huang, Flora Yueya"]
[Result "0-1"]
[ECO "B23"]
[WhiteElo "1663"]
[BlackElo "1481"]
[Annotator "NA RC"]
[PlyCount "70"]
[EventDate "2024.12.23"]
[EventType "team-tourn"]
[EventRounds "7"]
[EventCountry "GER"]
[SourceTitle "playchess.com"]
[Source "ChessBase"]
[SourceQuality "1"]
[TimeControl "3300+5"]

1. e4 {[%emt 0:00:20]} c5 {[%emt 0:00:03]} 2. Nc3 {[%emt 0:00:34]} e6 {[%emt 0:00:08]} 3. d3 {[%emt 0:00:19]} Nc6 {[%emt 0:00:14]} 4. f4 {[%emt 0:00:18]} d5 {[%emt 0:00:23]} 5. Nf3 {[%emt 0:01:15]} dxe4 {[%emt 0:02:25]} 6. Nxe4 {[%emt 0:01:57]} Nf6 {[%emt 0:00:00]} 7. Be3 {[%emt 0:00:36]} b6 {[%emt 0:00:00]} 8. g3 {[%emt 0:03:00]} Bb7 {[%emt 0:00:00]} 9. Bg2 {[%emt 0:00:39]} Nd5 {[%emt 0:00:28]} 10. Bf2 {[%emt 0:01:31]} Be7 {[%emt 0:01:05]} 11. O-O {[%emt 0:00:33]} Bf6 {[%emt 0:00:41]} 12. d4 {[%emt 0:05:03]} cxd4 {[%emt 0:01:11]} 13. Nxd4 {[%emt 0:01:02]} Bxd4 {[%emt 0:00:26]} 14. Bxd4 {[%emt 0:00:50]} O-O {[%emt 0:00:16]} 15. b3 {[%emt 0:03:18]} Nxd4 {[%emt 0:00:48]} 16. Qxd4 {[%emt 0:00:34]} Qc7 {[%emt 0:00:09]} 17. c4 {[%emt 0:00:53]} Nb4 {[%emt 0:00:20]} 18. Qc3 {[%emt 0:01:18]} Nc6 {[%emt 0:00:19]} 19. f5 {[%emt 0:01:23]} exf5 {[%emt 0:01:57]} 20. Rxf5 {[%emt 0:00:28]} f6 {[%emt 0:00:36]} 21. c5 {[%emt 0:01:49]} Ne7 {[%emt 0:10:40]} 22. Rff1 {[%emt 0:05:02]} Nd5 {[%emt 0:03:27]} 23. Qc4 {[%emt 0:02:09]} Kh8 {[%emt 0:01:30]} 24. Rae1 {[%emt 0:06:12]} Ne7 {[%emt 0:08:18]} 25. Nd6 {[%emt 0:02:27]} Bxg2 {[%emt 0:02:30]} 26. Kxg2 {[%emt 0:01:14]} Ng6 {[%emt 0:01:09]} 27. Rc1 {[%emt 0:02:19]} Ne5 {[%emt 0:01:37]} 28. Qc3 {[%emt 0:01:50]} Rfd8 {[%emt 0:00:14]} 29. b4 {[%emt 0:02:38]} h6 {[%emt 0:02:41]} 30. Nb5 {[%emt 0:00:37]} Qc6+ {[%emt 0:00:08]} 31. Kg1 {[%emt 0:01:24]} Qxb5 {[%emt 0:00:08]} 32. c6 {[%emt 0:00:00]} Rac8 {[%emt 0:00:13]} 33. Rfd1 {[%emt 0:00:47]} Rxd1+ {[%emt 0:00:09]} 34. Rxd1 {[%emt 0:00:00]} Qxc6 {[%emt 0:00:07]} 35. Rd8+ {[%emt 0:00:06]} Rxd8 {[%emt 0:00:05]} 0-1

[Event "DVM U10 2024"]
[Site "Duesseldorf"]
[Date "2024.12.28"]
[Round "4"]
[White "Sauer, Ben"]
[Black "Wessels, Keke"]
[Result "0-1"]
[ECO "B43"]
[WhiteElo "1645"]
[BlackElo "1568"]
[Annotator "NA RC"]
[PlyCount "36"]
[EventDate "2024.12.23"]
[EventType "team-tourn"]
[EventRounds "7"]
[EventCountry "GER"]
[SourceTitle "playchess.com"]
[Source "ChessBase"]
[SourceQuality "1"]
[TimeControl "3300+5"]

1. e4 {[%emt 0:00:01]} c5 {[%emt 0:00:08]} 2. Nf3 {[%emt 0:00:08]} e6 {[%emt 0:00:13]} 3. d4 {[%emt 0:00:09]} cxd4 {[%emt 0:00:08]} 4. Nxd4 {[%emt 0:00:07]} a6 {[%emt 0:00:15]} 5. Nc3 {[%emt 0:00:08]} b5 {[%emt 0:00:29]} 6. a3 {[%emt 0:00:47]} Bb7 {[%emt 0:00:20]} 7. Be2 {[%emt 0:02:05]} Qc7 {[%emt 0:01:34]} 8. O-O {[%emt 0:02:21]} Nf6 {[%emt 0:01:43]} 9. Qd3 {[%emt 0:02:38]} Nc6 {[%emt 0:04:02]} 10. Nxc6 {[%emt 0:07:09]} Bxc6 {[%emt 0:00:39]} 11. Bf3 {[%emt 0:05:35]} Bd6 {[%emt 0:09:28]} 12. h3 {[%emt 0:03:46]} Rc8 {[%emt 0:06:01]} 13. Rd1 {[%emt 0:05:23]} Be5 {[%emt 0:04:25]} 14. Bd2 {[%emt 0:04:44]} O-O {[%emt 0:07:11]} 15. Re1 {[%emt 0:02:10]} Rfe8 {[%emt 0:01:51]} 16. Rad1 {[%emt 0:02:22]} Rcd8 {[%emt 0:02:38]} 17. Qf1 {[%emt 0:05:06]} Re7 {[%emt 0:04:29]} 18. Rb1 {[%emt 0:02:11]} Ne8 {[%emt 0:01:05]} 0-1

[Event "DVM U10 2024"]
[Site "Duesseldorf"]
[Date "2024.12.28"]
[Round "4"]
[White "Satheesh, Dharshini"]
[Black "Mayer, Frederik Eliot"]
[Result "1-0"]
[ECO "C62"]
[WhiteElo "1643"]
[BlackElo "1128"]
[Annotator "NA RC"]
[PlyCount "141"]
[EventDate "2024.12.23"]
[EventType "team-tourn"]
[EventRounds "7"]
[EventCountry "GER"]
[SourceTitle "playchess.com"]
[Source "ChessBase"]
[SourceQuality "1"]
[TimeControl "3300+5"]

1. e4 {[%emt 0:00:01]} e5 {[%emt 0:00:01]} 2. Nf3 {[%emt 0:00:07]} Nc6 {[%emt 0:00:03]} 3. Bb5 {[%emt 0:00:06]} d6 {[%emt 0:00:45]} 4. d4 {[%emt 0:00:23]} Bg4 {[%emt 0:00:18]} 5. d5 {[%emt 0:00:56]} a6 {[%emt 0:00:39]} 6. dxc6 {[%emt 0:00:40]} axb5 {[%emt 0:00:21]} 7. cxb7 {[%emt 0:00:13]} Rb8 {[%emt 0:00:52]} 8. Qd5 {[%emt 0:05:59]} Qd7 {[%emt 0:00:52]} 9. a4 {[%emt 0:07:47]} c6 {[%emt 0:00:41]} 10. Qd3 {[%emt 0:03:13]} Qxb7 {[%emt 0:01:16]} 11. a5 {[%emt 0:05:34]} Ra8 {[%emt 0:01:02]} 12. h3 {[%emt 0:00:53]} Bxf3 {[%emt 0:00:23]} 13. Qxf3 {[%emt 0:00:18]} Nf6 {[%emt 0:00:24]} 14. Bg5 {[%emt 0:03:23]} Be7 {[%emt 0:00:18]} 15. Qd3 {[%emt 0:03:46]} Qc7 {[%emt 0:01:11]} 16. a6 {[%emt 0:02:12]} h6 {[%emt 0:01:41]} 17. Be3 {[%emt 0:02:52]} O-O {[%emt 0:01:02]} 18. O-O {[%emt 0:00:54]} Rfd8 {[%emt 0:00:29]} 19. Nc3 {[%emt 0:01:39]} b4 {[%emt 0:01:49]} 20. Na4 {[%emt 0:01:03]} d5 {[%emt 0:01:20]} 21. Bb6 {[%emt 0:00:23]} Qd6 {[%emt 0:04:47]} 22. Bxd8 {[%emt 0:00:07]} Bxd8 {[%emt 0:00:46]} 23. exd5 {[%emt 0:01:27]} cxd5 {[%emt 0:00:23]} 24. b3 {[%emt 0:01:17]} Rxa6 {[%emt 0:00:39]} 25. Nb2 {[%emt 0:02:02]} Rc6 {[%emt 0:01:05]} 26. Rfe1 {[%emt 0:01:26]} e4 {[%emt 0:00:48]} 27. Qg3 {[%emt 0:00:44]} Qxg3 {[%emt 0:01:04]} 28. fxg3 {[%emt 0:00:10]} Bb6+ {[%emt 0:00:15]} 29. Kf1 {[%emt 0:01:19]} Rxc2 {[%emt 0:00:18]} 30. Re2 {[%emt 0:00:54]} Rc6 {[%emt 0:01:17]} 31. Ra4 {[%emt 0:00:38]} Bc5 {[%emt 0:00:56]} 32. Rc2 {[%emt 0:00:38]} Kf8 {[%emt 0:05:35]} 33. Rxb4 {[%emt 0:00:49]} Bxb4 {[%emt 0:01:42]} 34. Rxc6 {[%emt 0:00:05]} d4 {[%emt 0:00:40]} 35. Rc4 {[%emt 0:00:31]} Bc3 {[%emt 0:00:13]} 36. Nd1 {[%emt 0:00:10]} e3 {[%emt 0:03:00]} 37. Nxc3 {[%emt 0:00:04]} dxc3 {[%emt 0:00:37]} 38. Rxc3 {[%emt 0:00:02]} Ne4 {[%emt 0:00:18]} 39. Rxe3 {[%emt 0:00:03]} Nd6 {[%emt 0:00:39]} 40. b4 {[%emt 0:00:04]} f6 {[%emt 0:00:33]} 41. Ke2 {[%emt 0:00:13]} Kf7 {[%emt 0:00:03]} 42. Kd3 {[%emt 0:00:03]} Nf5 {[%emt 0:00:13]} 43. Re1 {[%emt 0:00:08]} Nd6 {[%emt 0:00:30]} 44. Kd4 {[%emt 0:00:07]} Nb5+ {[%emt 0:01:00]} 45. Kc5 {[%emt 0:00:04]} Na3 {[%emt 0:00:25]} 46. b5 {[%emt 0:00:03]} Nxb5 {[%emt 0:00:33]} 47. Kxb5 {[%emt 0:00:02]} g5 {[%emt 0:00:12]} 48. g4 {[%emt 0:00:05]} Kg6 {[%emt 0:00:15]} 49. Kc5 {[%emt 0:00:05]} h5 {[%emt 0:00:05]} 50. Rf1 {[%emt 0:00:14]} hxg4 {[%emt 0:00:35]} 51. hxg4 {[%emt 0:00:01]} Kf7 {[%emt 0:00:35]} 52. Kd6 {[%emt 0:00:02]} Kg6 {[%emt 0:00:46]} 53. Ke6 {[%emt 0:00:01]} Kg7 {[%emt 0:00:04]} 54. Rxf6 {[%emt 0:00:02]} Kg8 {[%emt 0:00:05]} 55. Rg6+ {[%emt 0:00:02]} Kh7 {[%emt 0:00:07]} 56. Rxg5 {[%emt 0:00:02]} Kh6 {[%emt 0:00:10]} 57. Rf5 {[%emt 0:00:33]} Kg6 {[%emt 0:00:06]} 58. Rf6+ {[%emt 0:00:14]} Kg5 {[%emt 0:00:11]} 59. Ke5 {[%emt 0:00:08]} Kxg4 {[%emt 0:00:02]} 60. Rf7 {[%emt 0:00:11]} Kg3 {[%emt 0:00:04]} 61. Ke4 {[%emt 0:00:01]} Kxg2 {[%emt 0:00:03]} 62. Ke3 {[%emt 0:00:01]} Kg3 {[%emt 0:00:01]} 63. Rg7+ {[%emt 0:00:01]} Kh4 {[%emt 0:00:01]} 64. Kf3 {[%emt 0:00:05]} Kh5 {[%emt 0:00:01]} 65. Kf4 {[%emt 0:00:03]} Kh6 {[%emt 0:00:01]} 66. Rg1 {[%emt 0:00:02]} Kh5 {[%emt 0:00:02]} 67. Rg2 {[%emt 0:00:07]} Kh6 {[%emt 0:00:04]} 68. Kf5 {[%emt 0:00:01]} Kh7 {[%emt 0:00:12]} 69. Kf6 {[%emt 0:00:01]} Kh8 {[%emt 0:00:02]} 70. Kf7 {[%emt 0:00:01]} Kh7 {[%emt 0:00:03]} 71. Rh2# {[%emt 0:00:02]} 1-0

[Event "DVM U10 2024"]
[Site "Duesseldorf"]
[Date "2024.12.28"]
[Round "4"]
[White "Vignesh Bama, Dev"]
[Black "Kutschenreuter, Leo"]
[Result "1-0"]
[ECO "C40"]
[WhiteElo "1633"]
[BlackElo "1085"]
[Annotator "NA"]
[PlyCount "93"]
[EventDate "2024.12.23"]
[EventType "team-tourn"]
[EventRounds "7"]
[EventCountry "GER"]
[SourceTitle "playchess.com"]
[Source "ChessBase"]
[SourceQuality "1"]
[TimeControl "3300+5"]

1. e4 {[%emt 0:00:01]} e5 {[%emt 0:00:04]} 2. Nf3 {[%emt 0:00:04]} d5 {[%emt 0:00:07]} 3. exd5 {[%emt 0:00:22]} Qxd5 {[%emt 0:00:09]} 4. Nc3 {[%emt 0:00:07]} Qc5 {[%emt 0:00:11]} 5. Bb5+ {[%emt 0:01:21]} c6 {[%emt 0:00:22]} 6. Ba4 {[%emt 0:00:09]} Nf6 {[%emt 0:00:29]} 7. O-O {[%emt 0:00:18]} Bd6 {[%emt 0:00:24]} 8. Re1 {[%emt 0:00:26]} O-O {[%emt 0:00:24]} 9. d4 {[%emt 0:00:11]} exd4 {[%emt 0:00:30]} 10. Nxd4 {[%emt 0:00:36]} Bg4 {[%emt 0:01:50]} 11. f3 {[%emt 0:00:10]} Bh5 {[%emt 0:00:34]} 12. Be3 {[%emt 0:00:26]} Re8 {[%emt 0:02:54]} 13. Nb3 {[%emt 0:00:16]} Qe5 {[%emt 0:02:29]} 14. f4 {[%emt 0:00:39]} Qxe3+ {[%emt 0:00:52]} 15. Rxe3 {[%emt 0:00:15]} Bxd1 {[%emt 0:00:08]} 16. Rxe8+ {[%emt 0:00:10]} Nxe8 {[%emt 0:00:09]} 17. Rxd1 {[%emt 0:00:05]} Bxf4 {[%emt 0:00:22]} 18. Rd8 {[%emt 0:00:27]} Kf8 {[%emt 0:00:12]} 19. Nd4 {[%emt 0:00:39]} Be3+ {[%emt 0:00:59]} 20. Kf1 {[%emt 0:00:21]} b5 {[%emt 0:00:19]} 21. Ncxb5 {[%emt 0:00:34]} cxb5 {[%emt 0:00:17]} 22. Bxb5 {[%emt 0:00:05]} g6 {[%emt 0:01:01]} 23. Rxe8+ {[%emt 0:00:09]} Kg7 {[%emt 0:00:12]} 24. Rxe3 {[%emt 0:00:10]} a6 {[%emt 0:00:21]} 25. Bc4 {[%emt 0:00:26]} Nd7 {[%emt 0:00:25]} 26. Re7 {[%emt 0:00:16]} Nb6 {[%emt 0:00:27]} 27. Rxf7+ {[%emt 0:02:02]} Kh6 {[%emt 0:00:10]} 28. Rf6 {[%emt 0:00:26]} Nxc4 {[%emt 0:00:15]} 29. b3 {[%emt 0:00:22]} Nd2+ {[%emt 0:00:22]} 30. Ke2 {[%emt 0:00:08]} Ne4 {[%emt 0:00:19]} 31. Rf4 {[%emt 0:00:18]} Nc3+ {[%emt 0:00:23]} 32. Kd3 {[%emt 0:00:11]} Nxa2 {[%emt 0:00:11]} 33. Ne6 {[%emt 0:00:06]} Kh5 {[%emt 0:00:48]} 34. Ra4 {[%emt 0:00:24]} Nc1+ {[%emt 0:00:22]} 35. Kd2 {[%emt 0:00:10]} Re8 {[%emt 0:00:12]} 36. Ng7+ {[%emt 0:00:07]} Kh6 {[%emt 0:00:37]} 37. Nxe8 {[%emt 0:00:19]} Nxb3+ {[%emt 0:00:15]} 38. cxb3 {[%emt 0:00:08]} g5 {[%emt 0:00:07]} 39. Rxa6+ {[%emt 0:00:21]} Kh5 {[%emt 0:00:06]} 40. b4 {[%emt 0:00:16]} Kg4 {[%emt 0:00:08]} 41. b5 {[%emt 0:00:15]} h5 {[%emt 0:00:11]} 42. Ra4+ {[%emt 0:00:05]} Kf5 {[%emt 0:00:19]} 43. b6 {[%emt 0:00:06]} g4 {[%emt 0:00:12]} 44. b7 {[%emt 0:00:08]} Kg5 {[%emt 0:00:08]} 45. b8=Q {[%emt 0:00:13]} Kf5 {[%emt 0:01:16]} 46. Qb5+ {[%emt 0:00:11]} Ke6 {[%emt 0:00:13]} 47. Ra6+ {[%emt 0:00:10]} 1-0

[Event "DVM U10 2024"]
[Site "Duesseldorf"]
[Date "2024.12.28"]
[Round "4"]
[White "Zielke, Mika"]
[Black "Horn, Philipp"]
[Result "1-0"]
[ECO "C54"]
[WhiteElo "1623"]
[BlackElo "988"]
[Annotator "NA"]
[PlyCount "81"]
[EventDate "2024.12.23"]
[EventType "team-tourn"]
[EventRounds "7"]
[EventCountry "GER"]
[SourceTitle "playchess.com"]
[Source "ChessBase"]
[SourceQuality "1"]
[TimeControl "3300+5"]

1. e4 {[%emt 0:00:04]} e5 {[%emt 0:00:07]} 2. Nf3 {[%emt 0:00:06]} Nc6 {[%emt 0:00:07]} 3. Bc4 {[%emt 0:00:12]} Bc5 {[%emt 0:00:06]} 4. c3 {[%emt 0:00:12]} Nf6 {[%emt 0:00:07]} 5. d3 {[%emt 0:00:07]} a6 {[%emt 0:00:21]} 6. a4 {[%emt 0:00:29]} d6 {[%emt 0:00:25]} 7. Be3 {[%emt 0:00:39]} Bxe3 {[%emt 0:00:09]} 8. fxe3 {[%emt 0:00:05]} O-O {[%emt 0:00:22]} 9. O-O {[%emt 0:00:21]} Ne7 {[%emt 0:00:17]} 10. Nbd2 {[%emt 0:00:30]} Ng6 {[%emt 0:00:08]} 11. Re1 {[%emt 0:01:27]} c6 {[%emt 0:00:09]} 12. d4 {[%emt 0:04:55]} Qb6 {[%emt 0:03:17]} 13. Qb3 {[%emt 0:06:07]} Qc7 {[%emt 0:04:14]} 14. Rad1 {[%emt 0:05:23]} Bg4 {[%emt 0:00:49]} 15. Qc2 {[%emt 0:03:06]} Rfe8 {[%emt 0:01:08]} 16. h3 {[%emt 0:02:00]} Be6 {[%emt 0:01:11]} 17. Ng5 {[%emt 0:02:35]} Bxc4 {[%emt 0:00:39]} 18. Nxc4 {[%emt 0:00:10]} h6 {[%emt 0:00:23]} 19. Nf3 {[%emt 0:00:30]} b5 {[%emt 0:00:39]} 20. Ncd2 {[%emt 0:02:26]} Qa5 {[%emt 0:04:57]} 21. b4 {[%emt 0:01:38]} Qc7 {[%emt 0:01:22]} 22. a5 {[%emt 0:00:27]} c5 {[%emt 0:01:19]} 23. Rc1 {[%emt 0:01:53]} Rac8 {[%emt 0:01:25]} 24. dxc5 {[%emt 0:01:46]} dxc5 {[%emt 0:00:21]} 25. Qb2 {[%emt 0:00:16]} Red8 {[%emt 0:00:52]} 26. Qb1 {[%emt 0:01:04]} c4 {[%emt 0:00:29]} 27. Re2 {[%emt 0:00:34]} Qa7 {[%emt 0:01:14]} 28. Nh2 {[%emt 0:00:37]} Rd3 {[%emt 0:01:08]} 29. Nhf1 {[%emt 0:00:11]} Rcd8 {[%emt 0:00:41]} 30. Qc2 {[%emt 0:00:17]} Qb7 {[%emt 0:01:05]} 31. Ng3 {[%emt 0:00:14]} Nh7 {[%emt 0:01:46]} 32. Rf1 {[%emt 0:00:29]} Nf6 {[%emt 0:02:12]} 33. Kh1 {[%emt 0:00:38]} Qd7 {[%emt 0:00:24]} 34. Rd1 {[%emt 0:00:37]} Nh4 {[%emt 0:02:28]} 35. Kg1 {[%emt 0:00:42]} Qa7 {[%emt 0:01:55]} 36. Ngf1 {[%emt 0:00:24]} Nh5 {[%emt 0:01:28]} 37. Ree1 {[%emt 0:01:02]} R8d6 {[%emt 0:01:16]} 38. Nb1 {[%emt 0:00:26]} Rxd1 {[%emt 0:00:59]} 39. Rxd1 {[%emt 0:00:10]} Rxd1 {[%emt 0:00:25]} 40. Qxd1 {[%emt 0:00:01]} Qe7 {[%emt 0:01:05]} 41. Qxh5 {[%emt 0:00:24]} 1-0